[Event "*** Titled Tuesday 3|2 Blitz"]
[Site "Chess.com"]
[Date "2015.09.01"]
[Round "4"]
[White "PawelCzarnota"]
[Black "stepanosinovsky"]
[Result "0-1"]
[WhiteElo "2416"]
[BlackElo "2291"]
[TimeControl "180+2"]
[EndTime "11:50:22 PDT"]
[Termination "stepanosinovsky won by resignation"]

1. e4 {[%clk 0:03:01.9]} 1... e5 {[%clk 0:03:00.5]} 2. Nf3 {[%clk 0:03:02.6]}
2... Nc6 {[%clk 0:03:01.5]} 3. Bb5 {[%clk 0:03:03.5]} 3... a6 {[%clk 0:03:02.3]}
4. Ba4 {[%clk 0:03:04.6]} 4... Nf6 {[%clk 0:03:02.9]} 5. O-O {[%clk 0:03:06.2]}
5... Be7 {[%clk 0:03:02.8]} 6. Re1 {[%clk 0:03:07.3]} 6... b5 {[%clk 0:03:04]}
7. Bb3 {[%clk 0:03:08.9]} 7... O-O {[%clk 0:03:05.6]} 8. a4 {[%clk 0:03:10.4]}
8... b4 {[%clk 0:03:05.7]} 9. d4 {[%clk 0:03:11.1]} 9... d6 {[%clk 0:02:56.3]}
10. dxe5 {[%clk 0:03:11.9]} 10... Nxe5 {[%clk 0:02:48.6]} 11. Nxe5 {[%clk
0:03:11]} 11... dxe5 {[%clk 0:02:49.1]} 12. Qxd8 {[%clk 0:03:10.1]} 12... Rxd8
{[%clk 0:02:51]} 13. Bg5 {[%clk 0:03:08.9]} 13... h6 {[%clk 0:02:48.6]} 14. Bxf6
{[%clk 0:02:57.4]} 14... Bxf6 {[%clk 0:02:48.4]} 15. Bc4 {[%clk 0:02:44.2]}
15... Be6 {[%clk 0:02:33.9]} 16. Bd3 {[%clk 0:02:20.4]} 16... Bg5 {[%clk
0:01:42.3]} 17. Bf1 {[%clk 0:01:43.5]} 17... Rd6 {[%clk 0:01:20.1]} 18. c3
{[%clk 0:01:41.3]} 18... c5 {[%clk 0:01:12.4]} 19. a5 {[%clk 0:01:30.4]} 19...
Rad8 {[%clk 0:01:01.6]} 20. Be2 {[%clk 0:01:29.8]} 20... g6 {[%clk 0:00:51.7]}
21. Kf1 {[%clk 0:01:22.6]} 21... Bb3 {[%clk 0:00:36.4]} 22. g3 {[%clk
0:01:07.8]} 22... h5 {[%clk 0:00:36.3]} 23. h4 {[%clk 0:01:05.8]} 23... Bh6
{[%clk 0:00:36.3]} 24. Kg2 {[%clk 0:01:05]} 24... Kf8 {[%clk 0:00:35.9]} 25. Bf1
{[%clk 0:00:45.6]} 25... Ke7 {[%clk 0:00:26.9]} 26. Be2 {[%clk 0:00:46.9]} 26...
Bc2 {[%clk 0:00:27.4]} 27. Bf1 {[%clk 0:00:47]} 27... R8d7 {[%clk 0:00:25.8]}
28. Kf3 {[%clk 0:00:45]} 28... Kd8 {[%clk 0:00:24.4]} 29. Re2 {[%clk 0:00:37.8]}
29... Bd1 {[%clk 0:00:24.1]} 30. Kg2 {[%clk 0:00:38.3]} 30... Bxe2 {[%clk
0:00:22.4]} 31. Bxe2 {[%clk 0:00:40.2]} 31... Kc7 {[%clk 0:00:23.5]} 32. Kf1
{[%clk 0:00:40.2]} 32... Kb7 {[%clk 0:00:15.1]} 33. Ke1 {[%clk 0:00:41.4]} 33...
Bc1 {[%clk 0:00:14.1]} 34. Ra4 {[%clk 0:00:41.4]} 34... Bxb2 {[%clk 0:00:11]}
35. cxb4 {[%clk 0:00:42]} 35... Kc6 {[%clk 0:00:09.9]} 36. bxc5 {[%clk
0:00:31.5]} 36... Rd4 {[%clk 0:00:10.5]} 37. Rxd4 {[%clk 0:00:27.2]} 37... Bxd4
{[%clk 0:00:07.2]} 38. Bxa6 {[%clk 0:00:29.1]} 38... Kxc5 {[%clk 0:00:07.3]} 39.
Be2 {[%clk 0:00:27.6]} 39... Kb4 {[%clk 0:00:08]} 40. a6 {[%clk 0:00:28.3]}
40... Bc3+ {[%clk 0:00:08.6]} 41. Nxc3 {[%clk 0:00:26.9]} 41... Kxc3 {[%clk
0:00:09.7]} 42. f3 {[%clk 0:00:27.2]} 42... Kd4 {[%clk 0:00:10.1]} 43. Bb5
{[%clk 0:00:26.9]} 43... Rc7 {[%clk 0:00:10.9]} 44. Kd2 {[%clk 0:00:28]} 44...
Kc5 {[%clk 0:00:09.8]} 45. Be2 {[%clk 0:00:24.6]} 45... Rc8 {[%clk 0:00:09.2]}
46. Ke3 {[%clk 0:00:25.3]} 46... Rb8 {[%clk 0:00:09.8]} 47. f4 {[%clk
0:00:26.7]} 47... Rb3+ {[%clk 0:00:09.9]} 48. Kf2 {[%clk 0:00:27.7]} 48... Kd4
{[%clk 0:00:09.5]} 49. f5 {[%clk 0:00:25.9]} 49... Ra3 {[%clk 0:00:09.9]} 50.
fxg6 {[%clk 0:00:13.3]} 50... fxg6 {[%clk 0:00:11.8]} 51. g4 {[%clk 0:00:15.1]}
51... hxg4 {[%clk 0:00:11.9]} 52. Bxg4 {[%clk 0:00:17]} 52... Kxe4 {[%clk
0:00:11.3]} 53. Be2 {[%clk 0:00:17.7]} 53... Kf4 {[%clk 0:00:11.8]} 54. Ke1
{[%clk 0:00:17.3]} 54... Ke3 {[%clk 0:00:12.4]} 55. Bd1 {[%clk 0:00:05]} 55...
Ra1 {[%clk 0:00:12.8]} 56. Kf1 {[%clk 0:00:06.9]} 56... Rxd1+ {[%clk 0:00:13.5]}
57. Kg2 {[%clk 0:00:08.8]} 57... Ra1 {[%clk 0:00:14.8]} 0-1

[Event "*** Titled Tuesday 3|2 Blitz"]
[Site "Chess.com"]
[Date "2015.09.01"]
[Round "4"]
[White "stefanodinn"]
[Black "PowerThinking2650"]
[Result "0-1"]
[WhiteElo "2110"]
[BlackElo "2102"]
[TimeControl "180+2"]
[EndTime "11:50:34 PDT"]
[Termination "PowerThinking2650 won on time"]

1. e4 {[%clk 0:02:01.7]} 1... e5 {[%clk 0:03:00]} 2. Nf3 {[%clk 0:02:01.9]} 2...
Nc6 {[%clk 0:03:00.9]} 3. Bc4 {[%clk 0:02:02.5]} 3... Nf6 {[%clk 0:03:01.1]} 4.
d3 {[%clk 0:02:03.1]} 4... Be7 {[%clk 0:03:00.6]} 5. O-O {[%clk 0:02:03.4]} 5...
O-O {[%clk 0:03:00.5]} 6. Bb3 {[%clk 0:02:02.7]} 6... d6 {[%clk 0:03:00.9]} 7.
c3 {[%clk 0:02:02.1]} 7... Na5 {[%clk 0:03:01.2]} 8. Bc2 {[%clk 0:02:02.4]} 8...
c5 {[%clk 0:03:02.7]} 9. Re1 {[%clk 0:02:02.9]} 9... Nc6 {[%clk 0:03:04]} 10.
Nbd2 {[%clk 0:02:03.2]} 10... Re8 {[%clk 0:03:02]} 11. Nf1 {[%clk 0:02:03.4]}
11... Bf8 {[%clk 0:03:01.8]} 12. Ng3 {[%clk 0:02:03.7]} 12... h6 {[%clk
0:03:00.1]} 13. h3 {[%clk 0:01:59.4]} 13... d5 {[%clk 0:02:56.6]} 14. exd5
{[%clk 0:01:53]} 14... Nxd5 {[%clk 0:02:56.5]} 15. Bb3 {[%clk 0:01:53.4]} 15...
Nf4 {[%clk 0:02:07.5]} 16. Bxf4 {[%clk 0:01:46.3]} 16... exf4 {[%clk 0:02:08.5]}
17. Rxe8 {[%clk 0:01:40.2]} 17... Qxe8 {[%clk 0:02:08.5]} 18. Ne2 {[%clk
0:01:40.7]} 18... g5 {[%clk 0:02:04.6]} 19. d4 {[%clk 0:01:39.9]} 19... cxd4
{[%clk 0:01:57.9]} 20. Nexd4 {[%clk 0:01:37.8]} 20... Nxd4 {[%clk 0:01:52.8]}
21. Nxd4 {[%clk 0:01:19.9]} 21... Bg7 {[%clk 0:01:46.5]} 22. Qh5 {[%clk
0:01:16.8]} 22... Bxd4 {[%clk 0:01:03.4]} 23. cxd4 {[%clk 0:01:16.3]} 23... Kg7
{[%clk 0:01:04.3]} 24. h4 {[%clk 0:01:02.9]} 24... Qe7 {[%clk 0:00:54]} 25. hxg5
{[%clk 0:01:02.1]} 25... hxg5 {[%clk 0:00:54]} 26. d5 {[%clk 0:00:56.8]} 26...
Qf6 {[%clk 0:00:41.4]} 27. Bc2 {[%clk 0:00:44.2]} 27... Bf5 {[%clk 0:00:38.9]}
28. Bxf5 {[%clk 0:00:44]} 28... Qxf5 {[%clk 0:00:40]} 29. Qd1 {[%clk 0:00:40.4]}
29... Rd8 {[%clk 0:00:36.2]} 30. Qd4+ {[%clk 0:00:40.6]} 30... Qf6 {[%clk
0:00:37.3]} 31. Qxa7 {[%clk 0:00:39.2]} 31... Rxd5 {[%clk 0:00:31.9]} 32. Qxb7
{[%clk 0:00:37.4]} 32... Rd2 {[%clk 0:00:31.8]} 33. a4 {[%clk 0:00:31.9]} 33...
Rxb2 {[%clk 0:00:31]} 34. Qf3 {[%clk 0:00:28.8]} 34... Rxf2 {[%clk 0:00:29]} 35.
Kxf2 {[%clk 0:00:16.9]} 35... Qd4+ {[%clk 0:00:26.4]} 36. Ke2 {[%clk 0:00:15.4]}
36... Qb2+ {[%clk 0:00:23.3]} 37. Kd3 {[%clk 0:00:14.5]} 37... Qxa1 {[%clk
0:00:23]} 38. Qe4 {[%clk 0:00:13.3]} 38... Qd1+ {[%clk 0:00:18.7]} 39. Kc3
{[%clk 0:00:11.9]} 39... Qc1+ {[%clk 0:00:16]} 40. Kb4 {[%clk 0:00:11]} 40...
Qb2+ {[%clk 0:00:15.7]} 41. Kc5 {[%clk 0:00:10.1]} 41... Qc3+ {[%clk 0:00:14.7]}
42. Kb5 {[%clk 0:00:10]} 42... Qb2+ {[%clk 0:00:13.7]} 43. Kc6 {[%clk
0:00:09.4]} 43... Qf6+ {[%clk 0:00:13.2]} 44. Kc5 {[%clk 0:00:08.3]} 44... g4
{[%clk 0:00:14]} 45. a5 {[%clk 0:00:06.4]} 45... Qg5+ {[%clk 0:00:14.1]} 46. Kb6
{[%clk 0:00:06.6]} 46... Qg6+ {[%clk 0:00:09.6]} 47. Qxg6+ {[%clk 0:00:05.5]}
47... fxg6 {[%clk 0:00:10.3]} 48. a6 {[%clk 0:00:06.5]} 48... f3 {[%clk
0:00:11.6]} 49. gxf3 {[%clk 0:00:07.6]} 49... gxf3 {[%clk 0:00:09.8]} 50. a7
{[%clk 0:00:08.4]} 50... f2 {[%clk 0:00:11]} 51. a8=Q {[%clk 0:00:08.6]} 51...
f1=Q {[%clk 0:00:12.1]} 52. Qb7+ {[%clk 0:00:08.3]} 52... Qf7 {[%clk 0:00:12.4]}
53. Qg2 {[%clk 0:00:05.5]} 53... Qf6+ {[%clk 0:00:10.4]} 54. Kc5 {[%clk
0:00:05.9]} 54... Qe5+ {[%clk 0:00:10.6]} 55. Kc4 {[%clk 0:00:05.8]} 55... g5
{[%clk 0:00:11.1]} 56. Kd3 {[%clk 0:00:05.6]} 56... Kg6 {[%clk 0:00:10.9]} 57.
Kd2 {[%clk 0:00:02]} 57... Kf5 {[%clk 0:00:08.7]} 0-1

[Event "*** Titled Tuesday 3|2 Blitz"]
[Site "Chess.com"]
[Date "2015.09.01"]
[Round "4"]
[White "jcibarra"]
[Black "Mornar1951"]
[Result "1/2-1/2"]
[WhiteElo "2550"]
[BlackElo "2489"]
[TimeControl "180+2"]
[EndTime "11:51:04 PDT"]
[Termination "Game drawn by repetition"]

1. e4 {[%clk 0:03:01.9]} 1... e5 {[%clk 0:02:59.9]} 2. Nf3 {[%clk 0:03:03.1]}
2... Nf6 {[%clk 0:03:01.5]} 3. Nc3 {[%clk 0:03:03.9]} 3... Nc6 {[%clk
0:03:02.1]} 4. d4 {[%clk 0:03:04.8]} 4... exd4 {[%clk 0:03:03.5]} 5. Nxd4 {[%clk
0:03:06.7]} 5... Bb4 {[%clk 0:03:03.9]} 6. Nxc6 {[%clk 0:03:07.2]} 6... bxc6
{[%clk 0:03:04.6]} 7. Bd3 {[%clk 0:03:09.1]} 7... O-O {[%clk 0:03:05.6]} 8. O-O
{[%clk 0:03:09.7]} 8... d5 {[%clk 0:03:06.7]} 9. exd5 {[%clk 0:03:10.9]} 9...
cxd5 {[%clk 0:03:08.6]} 10. h3 {[%clk 0:03:08.8]} 10... c6 {[%clk 0:03:05.2]}
11. Qf3 {[%clk 0:03:07.6]} 11... Re8 {[%clk 0:02:57.2]} 12. Bf4 {[%clk
0:03:06.8]} 12... Bd6 {[%clk 0:02:55.7]} 13. Bxd6 {[%clk 0:03:04.9]} 13... Qxd6
{[%clk 0:02:56]} 14. Qg3 {[%clk 0:03:06.3]} 14... Qxg3 {[%clk 0:02:55]} 15. fxg3
{[%clk 0:03:08.2]} 15... Be6 {[%clk 0:02:48.5]} 16. g4 {[%clk 0:03:09.1]} 16...
h6 {[%clk 0:02:48.7]} 17. Na4 {[%clk 0:03:09.9]} 17... Nd7 {[%clk 0:02:47.3]}
18. Rad1 {[%clk 0:03:07.3]} 18... Rab8 {[%clk 0:02:38.9]} 19. b3 {[%clk
0:03:08.2]} 19... Nb6 {[%clk 0:02:19.1]} 20. Nc5 {[%clk 0:03:07]} 20... Nd7
{[%clk 0:02:18.8]} 21. Nxe6 {[%clk 0:03:05.1]} 21... Rxe6 {[%clk 0:02:19.3]} 22.
Bf5 {[%clk 0:03:02.4]} 22... Re7 {[%clk 0:02:19.3]} 23. c4 {[%clk 0:03:04]}
23... Nf6 {[%clk 0:02:18.2]} 24. Rf2 {[%clk 0:02:58.2]} 24... a5 {[%clk
0:02:09.6]} 25. Rc2 {[%clk 0:02:57.1]} 25... a4 {[%clk 0:02:07.7]} 26. bxa4
{[%clk 0:02:54]} 26... Ra7 {[%clk 0:02:08.4]} 27. cxd5 {[%clk 0:02:53.1]} 27...
cxd5 {[%clk 0:02:08.6]} 28. Rd4 {[%clk 0:02:50.7]} 28... g6 {[%clk 0:02:01.2]}
29. Bd3 {[%clk 0:02:27.2]} 29... Kf8 {[%clk 0:01:38.9]} 30. Bb5 {[%clk 0:02:27]}
30... Rb6 {[%clk 0:01:38.4]} 31. Rc6 {[%clk 0:02:24.8]} 31... Rxc6 {[%clk
0:01:36.8]} 32. Bxc6 {[%clk 0:02:26.7]} 32... Ke7 {[%clk 0:01:38.4]} 33. Bb5
{[%clk 0:02:23.3]} 33... Kd6 {[%clk 0:01:38.5]} 34. Kf2 {[%clk 0:02:24.3]} 34...
Ne4+ {[%clk 0:01:35.6]} 35. Ke3 {[%clk 0:02:01.3]} 35... Nc3 {[%clk 0:01:36.6]}
36. Rf4 {[%clk 0:01:34.1]} 36... Ke5 {[%clk 0:01:16.8]} 37. g3 {[%clk 0:01:27]}
37... Nxb5 {[%clk 0:01:12.1]} 38. axb5 {[%clk 0:01:27]} 38... Ra3+ {[%clk
0:01:13.6]} 39. Kd2 {[%clk 0:01:26]} 39... Rxa2+ {[%clk 0:01:14.6]} 40. Kc3
{[%clk 0:01:27.4]} 40... Ra3+ {[%clk 0:01:01.9]} 41. Kb4 {[%clk 0:01:27.9]}
41... Rxg3 {[%clk 0:01:02.2]} 42. Rxf7 {[%clk 0:01:28.9]} 42... Rxh3 {[%clk
0:01:01]} 43. b6 {[%clk 0:01:30]} 43... Rh1 {[%clk 0:00:59.9]} 44. b7 {[%clk
0:01:27.1]} 44... Rb1+ {[%clk 0:00:59.4]} 45. Kc5 {[%clk 0:01:27.7]} 45... d4
{[%clk 0:00:47]} 46. Re7+ {[%clk 0:01:22.9]} 46... Kf4 {[%clk 0:00:39.2]} 47.
Rd7 {[%clk 0:01:22.5]} 47... d3 {[%clk 0:00:27.9]} 48. Kc6 {[%clk 0:01:02.1]}
48... Kxg4 {[%clk 0:00:28]} 49. Rxd3 {[%clk 0:00:58]} 49... h5 {[%clk
0:00:26.1]} 50. Rd4+ {[%clk 0:00:58.2]} 50... Kf3 {[%clk 0:00:16.7]} 51. Rd3+
{[%clk 0:00:42.7]} 51... Kf4 {[%clk 0:00:16.2]} 52. Rd4+ {[%clk 0:00:40.8]}
52... Kf3 {[%clk 0:00:17.3]} 53. Rd3+ {[%clk 0:00:40.6]} 53... Kf4 {[%clk
0:00:18.5]} 54. Rd1 {[%clk 0:00:35.3]} 54... Rb2 {[%clk 0:00:14.2]} 55. Rf1+
{[%clk 0:00:31.8]} 55... Ke5 {[%clk 0:00:11.4]} 56. Rg1 {[%clk 0:00:24.9]} 56...
Kf5 {[%clk 0:00:11.6]} 57. Rf1+ {[%clk 0:00:24.6]} 57... Kg4 {[%clk 0:00:11.4]}
58. Rg1+ {[%clk 0:00:25.3]} 58... Kf5 {[%clk 0:00:12.6]} 59. Rf1+ {[%clk
0:00:20.3]} 59... Kg4 {[%clk 0:00:13.7]} 60. Rg1+ {[%clk 0:00:17.5]} 60... Kf5
{[%clk 0:00:14.9]} 61. Rg2 {[%clk 0:00:18.7]} 61... Rb3 {[%clk 0:00:13.1]} 62.
Rf2+ {[%clk 0:00:17]} 62... Kg4 {[%clk 0:00:12.5]} 63. Rg2+ {[%clk 0:00:18.3]}
63... Kf5 {[%clk 0:00:13.7]} 64. Rh2 {[%clk 0:00:16.5]} 64... Kg4 {[%clk
0:00:12.9]} 65. Rg2+ {[%clk 0:00:14.1]} 65... Kf5 {[%clk 0:00:12.1]} 1/2-1/2

[Event "*** Titled Tuesday 3|2 Blitz"]
[Site "Chess.com"]
[Date "2015.09.01"]
[Round "4"]
[White "ilmago"]
[Black "Haridaskesavan"]
[Result "0-1"]
[WhiteElo "1822"]
[BlackElo "2007"]
[TimeControl "180+2"]
[EndTime "11:51:12 PDT"]
[Termination "Haridaskesavan won on time"]

1. e4 {[%clk 0:03:01.9]} 1... e5 {[%clk 0:03:00.8]} 2. Nf3 {[%clk 0:03:02.1]}
2... Nc6 {[%clk 0:03:01.9]} 3. Bc4 {[%clk 0:03:01.6]} 3... Nf6 {[%clk
0:03:01.8]} 4. d3 {[%clk 0:03:02]} 4... Bc5 {[%clk 0:03:02]} 5. c3 {[%clk
0:03:02]} 5... Qe7 {[%clk 0:03:02.6]} 6. Be3 {[%clk 0:02:59.9]} 6... Bb6 {[%clk
0:03:03]} 7. Nbd2 {[%clk 0:02:57.8]} 7... d6 {[%clk 0:03:03.1]} 8. Nf1 {[%clk
0:02:54.7]} 8... h6 {[%clk 0:03:02]} 9. Ng3 {[%clk 0:02:54.4]} 9... Ng4 {[%clk
0:03:02.2]} 10. Qd2 {[%clk 0:02:47.4]} 10... Nxe3 {[%clk 0:03:02.4]} 11. fxe3
{[%clk 0:02:49.3]} 11... Bd7 {[%clk 0:03:01.4]} 12. d4 {[%clk 0:02:47]} 12...
O-O-O {[%clk 0:02:58.9]} 13. O-O {[%clk 0:02:46.4]} 13... g5 {[%clk 0:02:55.5]}
14. a4 {[%clk 0:02:42.7]} 14... a5 {[%clk 0:02:50]} 15. b4 {[%clk 0:02:40.1]}
15... axb4 {[%clk 0:02:49.2]} 16. cxb4 {[%clk 0:02:40.3]} 16... exd4 {[%clk
0:02:44.9]} 17. Nxd4 {[%clk 0:02:36.3]} 17... Ne5 {[%clk 0:02:41.7]} 18. Be2
{[%clk 0:02:31.8]} 18... Ba7 {[%clk 0:01:54.6]} 19. Rfc1 {[%clk 0:02:19.5]}
19... Be6 {[%clk 0:01:42]} 20. Nb5 {[%clk 0:02:07.7]} 20... Bb8 {[%clk 0:01:40]}
21. Rc3 {[%clk 0:01:51.6]} 21... Kd7 {[%clk 0:01:39.7]} 22. Rac1 {[%clk
0:01:48.4]} 22... Rc8 {[%clk 0:01:39]} 23. Rc5 {[%clk 0:01:30.1]} 23... Nc6
{[%clk 0:01:20]} 24. Nf5 {[%clk 0:01:04.8]} 24... Bxf5 {[%clk 0:01:16.9]} 25.
Rxf5 {[%clk 0:01:05]} 25... Ne5 {[%clk 0:01:08.5]} 26. Rf2 {[%clk 0:00:53]}
26... Rhf8 {[%clk 0:01:02.9]} 27. Nd4 {[%clk 0:00:52.7]} 27... Ba7 {[%clk
0:00:49.9]} 28. Nf5 {[%clk 0:00:52.5]} 28... Qe6 {[%clk 0:00:38.3]} 29. Bb5+
{[%clk 0:00:46]} 29... c6 {[%clk 0:00:35.6]} 30. Be2 {[%clk 0:00:42.1]} 30...
Kc7 {[%clk 0:00:21.3]} 31. b5 {[%clk 0:00:37.9]} 31... c5 {[%clk 0:00:20.8]} 32.
Rd1 {[%clk 0:00:36.3]} 32... Rcd8 {[%clk 0:00:20.8]} 33. a5 {[%clk 0:00:36.2]}
33... b6 {[%clk 0:00:21.2]} 34. a6 {[%clk 0:00:35.2]} 34... Bb8 {[%clk
0:00:20.8]} 35. Ra1 {[%clk 0:00:22.2]} 35... Ba7 {[%clk 0:00:20.3]} 36. Rff1
{[%clk 0:00:20.7]} 36... Kb8 {[%clk 0:00:21]} 37. Rfd1 {[%clk 0:00:20.4]} 37...
Rd7 {[%clk 0:00:20.8]} 38. Qe1 {[%clk 0:00:13.6]} 38... Rfd8 {[%clk 0:00:21.3]}
39. Qg3 {[%clk 0:00:13.5]} 39... Ka8 {[%clk 0:00:21.1]} 40. Rac1 {[%clk
0:00:12.6]} 40... d5 {[%clk 0:00:21.8]} 41. exd5 {[%clk 0:00:12.3]} 41... Rxd5
{[%clk 0:00:22.7]} 42. Rxd5 {[%clk 0:00:11.4]} 42... Qxd5 {[%clk 0:00:21.9]} 43.
Nxh6 {[%clk 0:00:08]} 43... Bb8 {[%clk 0:00:20.3]} 44. Bf3 {[%clk 0:00:07.6]}
44... Nxf3+ {[%clk 0:00:20.6]} 45. Qxf3 {[%clk 0:00:08.8]} 45... Qxf3 {[%clk
0:00:21.8]} 46. gxf3 {[%clk 0:00:10.3]} 46... Rd2 {[%clk 0:00:22.8]} 47. Nxf7
{[%clk 0:00:10.2]} 47... Bxh2+ {[%clk 0:00:23]} 48. Kf1 {[%clk 0:00:10.3]} 48...
Bg3 {[%clk 0:00:24.1]} 49. Nxg5 {[%clk 0:00:09.6]} 49... Rf2+ {[%clk 0:00:25.1]}
50. Kg1 {[%clk 0:00:09.7]} 50... Rb2 {[%clk 0:00:25.6]} 51. f4 {[%clk
0:00:06.7]} 51... Rxb5 {[%clk 0:00:24.5]} 52. f5 {[%clk 0:00:07.6]} 52... Be5
{[%clk 0:00:25]} 53. Nf7 {[%clk 0:00:05.8]} 53... Bf6 {[%clk 0:00:25.3]} 54. e4
{[%clk 0:00:06.3]} 54... Rb3 {[%clk 0:00:24.6]} 55. e5 {[%clk 0:00:06.7]} 55...
Bh4 {[%clk 0:00:23.6]} 56. e6 {[%clk 0:00:06.2]} 56... Re3 {[%clk 0:00:24.4]}
57. Nd6 {[%clk 0:00:05.8]} 57... Ka7 {[%clk 0:00:23]} 58. Rf1 {[%clk 0:00:04.9]}
58... Bf6 {[%clk 0:00:21.8]} 59. Kf2 {[%clk 0:00:02.9]} 59... Re5 {[%clk
0:00:21.8]} 0-1

[Event "*** Titled Tuesday 3|2 Blitz"]
[Site "Chess.com"]
[Date "2015.09.01"]
[Round "4"]
[White "nightmaresknight"]
[Black "Kempsy"]
[Result "1-0"]
[WhiteElo "2339"]
[BlackElo "2480"]
[TimeControl "180+2"]
[EndTime "11:51:18 PDT"]
[Termination "nightmaresknight won by resignation"]

1. e4 {[%clk 0:03:01.9]} 1... c5 {[%clk 0:02:59.3]} 2. Nf3 {[%clk 0:03:01.3]}
2... d6 {[%clk 0:03:00.6]} 3. d4 {[%clk 0:02:56.2]} 3... cxd4 {[%clk 0:03:02.5]}
4. Nxd4 {[%clk 0:02:54.1]} 4... Nf6 {[%clk 0:03:02.3]} 5. Nc3 {[%clk 0:02:52.2]}
5... a6 {[%clk 0:03:01]} 6. Bc4 {[%clk 0:02:52]} 6... e6 {[%clk 0:02:59]} 7. Bb3
{[%clk 0:02:49.7]} 7... Be7 {[%clk 0:02:58.4]} 8. O-O {[%clk 0:02:49.8]} 8...
O-O {[%clk 0:02:58.6]} 9. f4 {[%clk 0:02:47.2]} 9... b5 {[%clk 0:02:58.1]} 10.
f5 {[%clk 0:02:45.8]} 10... e5 {[%clk 0:02:16.7]} 11. Nf3 {[%clk 0:02:40.5]}
11... Bb7 {[%clk 0:02:17.6]} 12. Qd3 {[%clk 0:02:40.8]} 12... Nbd7 {[%clk
0:02:18]} 13. Be3 {[%clk 0:02:08.9]} 13... Nc5 {[%clk 0:02:17.1]} 14. Bxc5
{[%clk 0:02:09.3]} 14... dxc5 {[%clk 0:02:19]} 15. Bd5 {[%clk 0:02:09.6]} 15...
c4 {[%clk 0:02:01.5]} 16. Qe2 {[%clk 0:01:48.9]} 16... Bxd5 {[%clk 0:01:54.4]}
17. Nxd5 {[%clk 0:01:48.6]} 17... Nxd5 {[%clk 0:01:55.2]} 18. exd5 {[%clk
0:01:49.6]} 18... Qxd5 {[%clk 0:01:56.1]} 19. Nxe5 {[%clk 0:01:18.6]} 19... Bf6
{[%clk 0:01:54.3]} 20. Ng4 {[%clk 0:01:17.5]} 20... Bxb2 {[%clk 0:01:55.3]} 21.
Rad1 {[%clk 0:01:17.1]} 21... Qc5+ {[%clk 0:01:54.8]} 22. Kh1 {[%clk 0:01:18.1]}
22... Rfe8 {[%clk 0:01:55.1]} 23. Qf3 {[%clk 0:01:18.2]} 23... Rad8 {[%clk
0:01:38.9]} 24. Rxd8 {[%clk 0:00:59.4]} 24... Rxd8 {[%clk 0:01:40.8]} 25. f6
{[%clk 0:01:00.5]} 25... h5 {[%clk 0:00:24]} 26. fxg7 {[%clk 0:00:35.9]} 26...
Qd5 {[%clk 0:00:11.2]} 27. Nf6+ {[%clk 0:00:24.2]} 27... Bxf6 {[%clk 0:00:11.4]}
28. Qxf6 {[%clk 0:00:24.9]} 28... Rd6 {[%clk 0:00:07.3]} 29. Qc3 {[%clk
0:00:23.6]} 29... Re6 {[%clk 0:00:06.2]} 30. Qg3 {[%clk 0:00:20.5]} 30... Qe5
{[%clk 0:00:06.7]} 31. Qf2 {[%clk 0:00:18.4]} 31... f6 {[%clk 0:00:06]} 32. h3
{[%clk 0:00:19]} 32... Kxg7 {[%clk 0:00:07]} 33. Rd1 {[%clk 0:00:19.9]} 33...
Rd6 {[%clk 0:00:07.6]} 34. Re1 {[%clk 0:00:20.2]} 34... Qg5 {[%clk 0:00:08.3]}
35. Re7+ {[%clk 0:00:20.7]} 35... Kh6 {[%clk 0:00:09.8]} 36. Re1 {[%clk
0:00:18.9]} 36... Rd2 {[%clk 0:00:10.6]} 37. Qf3 {[%clk 0:00:19.5]} 37... h4
{[%clk 0:00:11.1]} 38. Qe4 {[%clk 0:00:17]} 38... Rf2 {[%clk 0:00:11.7]} 39. Rd1
{[%clk 0:00:17.7]} 39... Qf4 {[%clk 0:00:12.1]} 40. Qc6 {[%clk 0:00:18.1]} 40...
Rf1+ {[%clk 0:00:13]} 41. Rxf1 {[%clk 0:00:19.1]} 41... Qxf1+ {[%clk 0:00:14.9]}
42. Kh2 {[%clk 0:00:21]} 42... Qf4+ {[%clk 0:00:16.5]} 43. Kg1 {[%clk
0:00:22.1]} 43... Kg5 {[%clk 0:00:17.3]} 44. Qxa6 {[%clk 0:00:21.8]} 44... Qc1+
{[%clk 0:00:18.5]} 45. Kh2 {[%clk 0:00:22.5]} 45... Qf4+ {[%clk 0:00:19.6]} 46.
Kg1 {[%clk 0:00:23.4]} 46... Qd4+ {[%clk 0:00:20.9]} 47. Kh2 {[%clk 0:00:24.6]}
47... Qe5+ {[%clk 0:00:22.4]} 48. Kg1 {[%clk 0:00:25.7]} 48... Kf4 {[%clk
0:00:24.2]} 49. Qa5 {[%clk 0:00:25.5]} 49... Kg3 {[%clk 0:00:24.1]} 50. Qd2
{[%clk 0:00:24.8]} 50... Qc5+ {[%clk 0:00:24.8]} 51. Kh1 {[%clk 0:00:26]} 51...
Qe5 {[%clk 0:00:15.8]} 52. Kg1 {[%clk 0:00:27]} 52... c3 {[%clk 0:00:14.5]} 53.
Qd3+ {[%clk 0:00:26.5]} 53... Kf4 {[%clk 0:00:16.1]} 54. Qf3+ {[%clk 0:00:26.7]}
54... Kg5 {[%clk 0:00:17.2]} 55. Qg4+ {[%clk 0:00:27.8]} 55... Kh6 {[%clk
0:00:18.8]} 56. Qxh4+ {[%clk 0:00:29]} 56... Kg7 {[%clk 0:00:20.4]} 57. Qg4+
{[%clk 0:00:29.6]} 57... Kf7 {[%clk 0:00:21.5]} 58. Qd7+ {[%clk 0:00:30.3]}
58... Kg8 {[%clk 0:00:22.9]} 59. Qc8+ {[%clk 0:00:30.4]} 59... Kg7 {[%clk
0:00:24.2]} 60. Qd7+ {[%clk 0:00:31.2]} 60... Kh6 {[%clk 0:00:25.6]} 61. Qd3
{[%clk 0:00:31.5]} 61... Qe1+ {[%clk 0:00:25.2]} 62. Kh2 {[%clk 0:00:32.8]}
62... Qd2 {[%clk 0:00:26.6]} 63. Qf5 {[%clk 0:00:33.8]} 63... Kg7 {[%clk
0:00:27]} 64. h4 {[%clk 0:00:35]} 64... Qd6+ {[%clk 0:00:27.1]} 65. Kg1 {[%clk
0:00:35.3]} 65... Qd1+ {[%clk 0:00:27.9]} 66. Kh2 {[%clk 0:00:36.6]} 66... Qd6+
{[%clk 0:00:28.8]} 67. Kh3 {[%clk 0:00:37.2]} 67... Qd4 {[%clk 0:00:27.5]} 68.
h5 {[%clk 0:00:36.8]} 68... Qe3+ {[%clk 0:00:27.9]} 69. Kh2 {[%clk 0:00:37.8]}
69... Qe1 {[%clk 0:00:26.1]} 70. Qg6+ {[%clk 0:00:37.8]} 70... Kf8 {[%clk
0:00:27.3]} 71. Qxf6+ {[%clk 0:00:38.4]} 71... Ke8 {[%clk 0:00:28.9]} 72. h6
{[%clk 0:00:39.6]} 72... Qe2 {[%clk 0:00:27.4]} 73. Qxc3 {[%clk 0:00:37]} 73...
Qh5+ {[%clk 0:00:27.8]} 74. Qh3 {[%clk 0:00:37.3]} 74... Qe5+ {[%clk 0:00:28.5]}
75. Qg3 {[%clk 0:00:38.4]} 75... Qh5+ {[%clk 0:00:29.7]} 76. Kg1 {[%clk
0:00:39.7]} 76... Qd1+ {[%clk 0:00:27.8]} 77. Kf2 {[%clk 0:00:34.7]} 77... Qxc2+
{[%clk 0:00:29]} 78. Kf1 {[%clk 0:00:36.1]} 78... Qc1+ {[%clk 0:00:30]} 79. Qe1+
{[%clk 0:00:36.7]} 1-0